[Event "FTX Road to Miami KO 2022"]
[Site "Online"]
[Date "2022.07.15"]
[Round "2.1"]
[White "Wei, Yi"]
[Black "Rapport, Richard"]
[Result "1/2-1/2"]
[ECO "B42"]
[WhiteElo "2727"]
[BlackElo "2764"]
[Annotator "TA"]
[PlyCount "258"]
[EventDate "2022.07.09"]
[EventType "k.o."]
[EventCountry "NET"]
[SourceTitle "playchess.com"]
[Source "ChessBase"]
[SourceQuality "1"]
[TimeControl "900+10"]

{[%evp 149,258,0,0,0,0,0,0,0,0,0,0,0,0,0,16,16,12,12,20,0,0,0,1,1,8,0,0,0,0,0,0,0,0,0,0,0,0,0,0,0,0,0,0,0,0,0,0,0,0,0,0,0,0,0,0,0,0,0,0,0,0,0,0,0,0,0,0,0,0,0,0,0,0,0,0,0,0,0,0,0,0,0,0,0,0,0,0,0,0,0,0,0,0,0,0,0,0,0,0,0,0,0,0,0,0,0,0,0,0,0,0]} 1. e4 {[%emt 0:00:00]} c5 {[%emt 0:00:00]} 2. Nf3 {[%emt 0:00:02]} e6 {[%emt 0:00:01]} 3. d4 {[%emt 0:00:06]} cxd4 {[%emt 0:00:00]} 4. Nxd4 {[%emt 0:00:01]} a6 {[%emt 0:00:00]} 5. Bd3 {[%emt 0:00:45]} Bc5 {[%emt 0:00:04]} 6. Nb3 {[%emt 0:00:02]} Ba7 {[%emt 0:00:01]} 7. O-O {[%emt 0:00:10]} Nc6 {[%emt 0:00:06]} 8. Qe2 {[%emt 0:01:53]} Nge7 {[%emt 0:00:24]} 9. c4 {[%emt 0:00:19]} O-O {[%emt 0:00:06]} 10. Nc3 {[%emt 0:00:02]} d6 {[%emt 0:02:07]} 11. Be3 {[%emt 0:00:06]} e5 {[%emt 0:00:06]} 12. Rad1 {[%emt 0:01:29]} Be6 {[%emt 0:00:06]} 13. Nd5 {[%emt 0:00:10]} a5 {[%emt 0:00:27]} 14. a4 {[%emt 0:02:50]} Nb4 {[%emt 0:01:13]} 15. Bxa7 {[%emt 0:00:45]} Rxa7 {[%emt 0:00:04]} 16. Qe3 {[%emt 0:00:07]} b6 {[%emt 0:00:46]} 17. Nxb4 {[%emt 0:03:14]} axb4 {[%emt 0:00:03]} 18. a5 {[%emt 0:00:00]} Nc8 {[%emt 0:00:23]} 19. axb6 {[%emt 0:00:05]} Qxb6 {[%emt 0:00:00]} 20. Qd2 {[%emt 0:01:44]} Rc7 {[%emt 0:01:29]} 21. Rc1 {[%emt 0:00:05]} Ne7 {[%emt 0:00:08]} 22. Rfd1 {[%emt 0:00:04]} Rfc8 {[%emt 0:00:04]} 23. Bf1 {[%emt 0:00:24]} Rc6 {[%emt 0:01:29]} 24. Ra1 {[%emt 0:02:30]} h6 {[%emt 0:00:42]} 25. Ra4 {[%emt 0:00:51]} Rb8 {[%emt 0:02:35]} 26. Na5 {[%emt 0:00:06]} Rc7 {[%emt 0:00:01]} 27. Qxd6 {[%emt 0:00:23]} Qxd6 {[%emt 0:00:07]} 28. Rxd6 {[%emt 0:00:01]} Ra8 {[%emt 0:00:18]} 29. b3 {[%emt 0:00:58]} Kh7 {[%emt 0:01:05]} 30. c5 {[%emt 0:00:24]} Rca7 {[%emt 0:01:48]} 31. Nc4 {[%emt 0:00:01]} Rxa4 {[%emt 0:00:17]} 32. bxa4 {[%emt 0:00:00]} b3 {[%emt 0:00:12]} 33. Nxe5 {[%emt 0:00:12]} Rxa4 {[%emt 0:00:35]} 34. Rb6 {[%emt 0:00:04]} Ra1 {[%emt 0:00:01]} 35. f3 {[%emt 0:00:17]} Ng6 {[%emt 0:00:10]} 36. Nd3 {[%emt 0:00:23]} Bc4 {[%emt 0:00:23]} 37. Kf2 {[%emt 0:00:01]} Rxf1+ {[%emt 0:00:39]} 38. Kxf1 {[%emt 0:00:00]} Ne5 {[%emt 0:00:01]} 39. Rxb3 {[%emt 0:00:07]} Nxd3 {[%emt 0:00:27]} 40. Rc3 {[%emt 0:00:02]} Bb5 {[%emt 0:00:06]} 41. Kg1 {[%emt 0:00:19]} Ne5 {[%emt 0:00:06]} 42. f4 {[%emt 0:00:19]} Nc6 {[%emt 0:00:05]} 43. Rb3 {[%emt 0:00:11]} Ba4 {[%emt 0:00:03]} 44. Rb6 {[%emt 0:00:06]} Kg6 {[%emt 0:00:06]} 45. Ra6 {[%emt 0:00:05]} Bb5 {[%emt 0:00:02]} 46. Rb6 {[%emt 0:00:01]} Ba4 {[%emt 0:00:00]} 47. Kf2 {[%emt 0:00:02]} Kf6 {[%emt 0:00:02]} 48. Ra6 {[%emt 0:00:03]} Bb5 {[%emt 0:00:01]} 49. Rb6 {[%emt 0:00:00]} Ba4 {[%emt 0:00:00]} 50. Ke3 {[%emt 0:00:04]} Ke6 {[%emt 0:00:07]} 51. Ra6 {[%emt 0:00:03]} Bb5 {[%emt 0:00:02]} 52. Rb6 {[%emt 0:00:00]} Ba4 {[%emt 0:00:01]} 53. Kd3 {[%emt 0:00:04]} Kd7 {[%emt 0:00:25]} 54. Rb7+ {[%emt 0:00:04]} Ke6 {[%emt 0:00:29]} 55. Rb6 {[%emt 0:00:03]} Kd7 {[%emt 0:00:02]} 56. Rb7+ {[%emt 0:01:19]} Ke6 {[%emt 0:00:02]} 57. Kc3 {[%emt 0:00:36]} g6 {[%emt 0:00:09]} 58. g4 {[%emt 0:00:19]} g5 {[%emt 0:01:34]} 59. f5+ {[%emt 0:00:07]} Kf6 {[%emt 0:00:01]} 60. h3 {[%emt 0:00:05]} Ne5 {[%emt 0:00:34]} 61. Rb4 {[%emt 0:00:24]} Bc6 {[%emt 0:00:06]} 62. Rd4 {[%emt 0:00:01]} Ke7 {[%emt 0:00:12]} 63. Rd6 {[%emt 0:00:09]} f6 {[%emt 0:00:08]} 64. Rd4 {[%emt 0:00:28]} Nf3 {[%emt 0:00:16]} 65. Rd3 {[%emt 0:00:03]} Ne5 {[%emt 0:00:03]} 66. Rd4 {[%emt 0:00:01]} Nf3 {[%emt 0:00:02]} 67. Rd3 {[%emt 0:00:07]} Ne5 {[%emt 0:00:02]} 68. Re3 {[%emt 0:00:00]} Be8 {[%emt 0:00:04]} 69. Kb4 {[%emt 0:00:23]} h5 {[%emt 0:00:03]} 70. gxh5 {[%emt 0:00:06]} Bxh5 {[%emt 0:00:00]} 71. Ra3 {[%emt 0:00:07]} Be8 {[%emt 0:00:05]} 72. Ra7+ {[%emt 0:00:11]} Kd8 {[%emt 0:00:16]} 73. Ra8+ {[%emt 0:00:06]} Ke7 {[%emt 0:00:01]} 74. Ra7+ {[%emt 0:00:22]} Bd7 {[%emt 0:00:01]} 75. Rb7 {[%emt 0:00:05]} Kd8 {[%emt 0:00:03]} 76. Rb8+ {[%emt 0:00:13]} Ke7 {[%emt 0:00:03]} 77. Rb7 {[%emt 0:00:05]} Nc6+ {[%emt 0:00:38]} 78. Kc3 {[%emt 0:00:10]} Kd8 {[%emt 0:00:06]} 79. Rb6 {[%emt 0:00:04]} Kc7 {[%emt 0:00:10]} 80. Kc4 {[%emt 0:00:05]} Be8 {[%emt 0:00:02]} 81. Kc3 {[%emt 0:00:15]} Bh5 {[%emt 0:00:07]} 82. Kd3 {[%emt 0:00:20]} Bf3 {[%emt 0:00:10]} 83. Rb2 $1 {[%emt 0:00:14]} Bh5 {[%emt 0:00:11]} 84. Ke3 {[%emt 0:00:09]} Ne5 {[%emt 0:00:14]} 85. Ra2 {[%emt 0:00:06]} Be8 {[%emt 0:00:12]} 86. Ra7+ {[%emt 0:00:08]} Kd8 {[%emt 0:00:03]} 87. Rh7 {[%emt 0:00:22]} Bc6 {[%emt 0:00:37]} 88. h4 {[%emt 0:00:06]} gxh4 {[%emt 0:00:05]} 89. Rxh4 {[%emt 0:00:01]} Ke7 {[%emt 0:00:02]} 90. Rh7+ {[%emt 0:00:04]} Ke8 {[%emt 0:00:07]} 91. Rh3 {[%emt 0:00:16]} Ke7 {[%emt 0:00:15]} 92. Kd4 {[%emt 0:00:03]} Nd7 {[%emt 0:00:09]} 93. Rh7+ {[%emt 0:00:04]} Ke8 {[%emt 0:00:06]} 94. Rh8+ {[%emt 0:00:01]} Ke7 {[%emt 0:00:01]} 95. Rc8 {[%emt 0:00:25]} Ne5 {[%emt 0:00:02]} 96. Rc7+ {[%emt 0:00:14]} Kd8 {[%emt 0:00:04]} 97. Rg7 {[%emt 0:00:01]} Ke8 {[%emt 0:00:04]} 98. Rg3 {[%emt 0:00:09]} Ke7 {[%emt 0:00:05]} 99. Ra3 {[%emt 0:00:04]} Kd8 {[%emt 0:00:07]} 100. Rb3 {[%emt 0:00:09]} Ke7 {[%emt 0:00:02]} 101. Rh3 {[%emt 0:00:39]} Ke8 {[%emt 0:00:06]} 102. Rg3 {[%emt 0:00:15]} Kf7 {[%emt 0:00:05]} 103. Re3 {[%emt 0:00:08]} Ke7 {[%emt 0:00:05]} 104. Kc3 {[%emt 0:00:04]} Kd7 {[%emt 0:00:03]} 105. Kb4 {[%emt 0:00:09]} Kc7 {[%emt 0:00:04]} 106. Kc3 {[%emt 0:00:10]} Kd7 {[%emt 0:00:02]} 107. Kd4 {[%emt 0:00:01]} Ke7 {[%emt 0:00:01]} 108. Re2 {[%emt 0:00:10]} (108. Kc3 $5 {[%cal Rc3d4]}) 108... Nf3+ {[%emt 0:00:04]} 109. Ke3 {[%emt 0:00:06]} Ne5 {[%emt 0:00:00]} 110. Rg2 {[%emt 0:00:08]} Nd7 {[%emt 0:00:05]} 111. Rc2 {[%emt 0:00:11]} Ne5 {[%emt 0:00:03]} 112. Rc1 $1 {[%emt 0:00:08]} Ng4+ {[%emt 0:00:03]} 113. Kf4 {[%emt 0:00:12]} Ne5 $1 {[%emt 0:00:06]} 114. Rd1 {[%emt 0:00:04]} Nf7 {[%emt 0:00:33]} 115. Rd2 {[%emt 0:00:04]} Ke8 {[%emt 0:00:03]} 116. Rd4 {[%emt 0:00:20]} Ke7 {[%emt 0:00:03]} 117. Rd1 {[%emt 0:00:23]} Ke8 {[%emt 0:00:03]} 118. Rg1 {[%emt 0:00:23]} Ne5 {[%emt 0:00:03]} 119. Rg7 {[%emt 0:00:15]} Nd3+ {[%emt 0:00:09]} 120. Ke3 {[%emt 0:00:02]} Ne5 {[%emt 0:00:04]} 121. Rg1 {[%emt 0:00:06]} Nc4+ {[%emt 0:00:03]} 122. Kf4 {[%emt 0:00:12]} Ne5 {[%emt 0:00:00]} 123. Rd1 {[%emt 0:00:02]} Nf7 {[%emt 0:00:02]} 124. Rd3 {[%emt 0:00:20]} Ke7 {[%emt 0:00:03]} 125. Rd4 {[%emt 0:00:01]} Ke8 {[%emt 0:00:02]} 126. Kg4 {[%emt 0:00:05]} Kf8 {[%emt 0:01:02]} 127. Kf4 {[%emt 0:00:25]} Ke8 {[%emt 0:00:02]} 128. Kg4 {[%emt 0:00:01]} Kf8 {[%emt 0:00:02]} 129. Kf4 {[%emt 0:00:00]} Ke8 {[%emt 0:00:01]} 1/2-1/2

[Event "FTX Road to Miami KO 2022"]
[Site "Online"]
[Date "2022.07.16"]
[Round "3.1"]
[White "Aronian, Levon"]
[Black "Wei, Yi"]
[Result "1/2-1/2"]
[ECO "A14"]
[WhiteElo "2775"]
[BlackElo "2727"]
[Annotator "TA"]
[PlyCount "157"]
[EventDate "2022.07.09"]
[EventType "k.o."]
[EventCountry "NET"]
[SourceTitle "playchess.com"]
[Source "ChessBase"]
[SourceQuality "1"]
[TimeControl "900+10"]

{[%evp 18,157,17,7,20,0,22,0,17,0,0,0,0,0,4,11,83,72,87,35,33,25,79,81,74,89,73,75,73,75,80,31,52,7,4,9,12,12,9,0,154,158,155,156,177,161,145,153,150,30,45,8,87,0,0,0,0,0,0,0,0,0,0,0,0,0,0,-25,-25,-25,-25,-34,0,-25,0,-25,0,-25,0,-25,0,-25,-25,-25,-25,-25,-25,-25,-25,-25,0,-25,-8,-8,-8,-8,-8,-8,-8,-8,-8,-8,-8,0,8,8,8,8,8,8,8,8,8,8,8,8,8,8,8,8,8,8,8,8,8,8,8,0,0,0,8,8,8,8,8,8,8,0,8,0,0,0]} 1. c4 {[%emt 0:00:00]} Nf6 {[%emt 0:00:00]} 2. g3 {[%emt 0:00:05]} e6 {[%emt 0:00:07]} 3. Bg2 {[%emt 0:00:03]} d5 {[%emt 0:00:02]} 4. Nf3 {[%emt 0:00:00]} Be7 {[%emt 0:00:01]} 5. O-O {[%emt 0:00:08]} O-O {[%emt 0:00:01]} 6. b3 {[%emt 0:00:01]} b6 {[%emt 0:01:01]} 7. Bb2 {[%emt 0:00:04]} Bb7 {[%emt 0:00:02]} 8. e3 {[%emt 0:00:26]} c5 {[%emt 0:02:35]} 9. Qe2 {[%emt 0:00:10]} Nc6 {[%emt 0:00:18]} 10. Rd1 {[%emt 0:00:03]} Qc8 {[%emt 0:01:12] A14: English Opening: 1...e6 with b3 by White.} 11. d4 {[%emt 0:00:54]} Rd8 {[%emt 0:01:52]} 12. Nbd2 {[%emt 0:02:26] [#]} dxc4 $146 {[%emt 0:02:54]} ({Predecessor:} 12... a5 13. cxd5 Ba6 14. Qe1 exd5 15. Bf1 Nb4 16. Bxa6 Qxa6 17. Qf1 Nd3 18. Bc3 Ng4 {0-1 (48) Gueci,T (2042)-Marzaduri,R (2137) Nicolosi 2015}) 13. bxc4 {[%emt 0:00:02]} Qc7 {[%emt 0:00:39]} 14. Rac1 {[%emt 0:01:34]} Rac8 {[%emt 0:00:06]} 15. Bh3 {[%emt 0:00:49][%cal Od4d5]} Ba6 {[%emt 0:00:46]} 16. Nb3 {[%emt 0:00:29]} Qb8 {[%emt 0:00:42]} (16... Ne8 $11) 17. Ng5 $1 $16 {[%emt 0:00:49][%cal Og5e6]} Rc7 {[%emt 0:01:39] [#]} 18. dxc5 {[%emt 0:01:43]} ({White should try} 18. Nxe6 $1 $16 fxe6 19. Bxe6+ Kh8 20. d5) 18... Rxd1+ {[%emt 0:00:23]} 19. Rxd1 {[%emt 0:03:51]} bxc5 {[%emt 0:00:14]} (19... h6 $11 20. cxb6 axb6) 20. Qc2 $1 {[%emt 0:00:36]} h6 {[%emt 0:00:45]} 21. Bxf6 {[%emt 0:00:05] Qh7+ would kill now.} hxg5 {[%emt 0:00:02]} 22. Bxe7 {[%emt 0:00:20]} Nxe7 {[%emt 0:00:01]} 23. Qe4 $36 {[%emt 0:00:30][%cal Oh3e6][%mdl 2048] Black is under strong pressure.} Qc8 {[%emt 0:01:24]} 24. Rd6 {[%emt 0:00:32] 0x0.00198e13a13adp-1022s more active pieces.} (24. Qg4 $1 $16) 24... Rc6 $1 $14 {[%emt 0:00:52]} 25. Qd3 {[%emt 0:01:37]} (25. Rd2 $5 {[%cal Re4g4]}) 25... Rxd6 {[%emt 0:00:02]} 26. Qxd6 {[%emt 0:00:00]} Nf5 {[%emt 0:00:04]} 27. Bxf5 {[%emt 0:01:18]} exf5 $11 {[%emt 0:00:00][%mdl 4096] Endgame KQB-KQN} 28. Qd5 {[%emt 0:00:33]} (28. Nd2 {keeps more tension.} g4 29. Kf1 Qb7 30. Qxc5 Qb2 31. Ke2) 28... Qe6 $2 {[%emt 0:00:01]} ({Black should play} 28... Bb7 $11 29. Qd6 (29. Qxc5 Qd7 $11) 29... Ba6) 29. Nxc5 $16 {[%emt 0:00:14]} Qxd5 {[%emt 0:00:21]} 30. cxd5 {[%emt 0:00:01] KB-KN} Bc4 {[%emt 0:00:06]} 31. d6 {[%emt 0:00:02]} Kf8 {[%emt 0:00:01] [#]} 32. a3 {[%emt 0:00:03] Strongly threatening f3.} g4 {[%emt 0:00:10] [#]} 33. Kg2 {[%emt 0:00:01]} (33. e4 $1 $16 {[%cal Re4f5]}) 33... Be2 $1 $11 {[%emt 0:00:13]} 34. h4 {[%emt 0:00:47]} Ke8 {[%emt 0:00:02]} 35. h5 {[%emt 0:00:09]} (35. a4 $16) 35... Kd8 $1 {[%emt 0:00:03]} 36. Kh2 {[%emt 0:00:26]} Kc8 {[%emt 0:00:01]} 37. Kg1 {[%emt 0:00:01]} Kd8 {[%emt 0:00:01]} 38. Kg2 {[%emt 0:00:00]} Kc8 {[%emt 0:00:01]} 39. f4 {[%emt 0:00:11] Threatens to win with Kf2.} gxf3+ $1 {[%emt 0:00:05]} 40. Kf2 {[%emt 0:00:00]} Bd1 {[%emt 0:00:50] Against Nb3} 41. e4 {[%emt 0:00:42]} fxe4 {[%emt 0:00:10]} 42. Ke3 {[%emt 0:00:09]} f2 {[%emt 0:00:29]} 43. Kxf2 {[%emt 0:00:01]} Bxh5 {[%emt 0:00:02]} 44. Ke3 {[%emt 0:00:01]} Bf3 {[%emt 0:00:41]} 45. Kf4 {[%emt 0:00:26]} Kd8 {[%emt 0:00:17]} 46. Ke3 {[%emt 0:00:16]} Kc8 {[%emt 0:00:08]} 47. Kf4 {[%emt 0:00:09]} Kd8 {[%emt 0:00:01]} 48. Ke3 {[%emt 0:00:12]} Ke8 {[%emt 0:00:18]} 49. Kd4 {[%emt 0:00:03]} f5 {[%emt 0:01:15]} 50. a4 {[%emt 0:00:11]} Kf7 {[%emt 0:00:08]} 51. a5 {[%emt 0:00:11]} Kf6 {[%emt 0:00:13]} 52. Ke3 {[%emt 0:00:09]} Bh5 {[%emt 0:00:16]} 53. Kd4 {[%emt 0:00:03]} Bf3 {[%emt 0:00:06]} 54. Ke3 {[%emt 0:00:03]} g5 {[%emt 0:00:08]} 55. Kd4 {[%emt 0:00:02] The position is equal.} Bg2 {[%emt 0:00:14]} 56. Ke3 {[%emt 0:00:07]} Bh1 {[%emt 0:00:10]} 57. Kd4 {[%emt 0:00:07]} Bf3 {[%emt 0:00:05]} 58. Ke3 {[%emt 0:00:02]} Bh5 {[%emt 0:00:06]} 59. Kd4 {[%emt 0:00:02]} Bf7 {[%emt 0:00:17]} 60. g4 {[%emt 0:00:35]} fxg4 {[%emt 0:00:13]} 61. Nxe4+ {[%emt 0:00:01]} Ke6 {[%emt 0:00:02] ...Bg6 is the strong threat.} 62. Nxg5+ {[%emt 0:00:01]} Kxd6 {[%emt 0:00:00] aiming for ...Bd5.} 63. Nxf7+ {[%emt 0:00:00] KN-KPP} Kc6 {[%emt 0:00:01]} 64. Kc4 {[%emt 0:00:10] White wants to mate with Ne5+.} g3 {[%emt 0:00:01]} 65. Ne5+ {[%emt 0:00:01]} Kd6 {[%emt 0:00:02]} 66. Nf3 $1 {[%emt 0:00:02]} g2 {[%emt 0:00:10]} 67. Kb5 {[%emt 0:00:27]} Kc7 {[%emt 0:00:02]} 68. Kc5 {[%emt 0:00:19]} Kb7 {[%emt 0:00:02]} 69. Ng1 {[%emt 0:00:02]} Ka6 {[%emt 0:00:03]} 70. Kb4 {[%emt 0:00:01]} Kb7 {[%emt 0:00:00]} 71. Kb5 {[%emt 0:00:00]} Kc7 {[%emt 0:00:01]} 72. a6 {[%emt 0:00:31]} Kd6 {[%emt 0:00:02]} 73. Ne2 {[%emt 0:00:01]} Kc7 {[%emt 0:00:07]} 74. Kc5 {[%emt 0:00:01]} Kd7 {[%emt 0:00:01]} 75. Ng1 {[%emt 0:00:02]} Kc7 {[%emt 0:00:01]} 76. Nh3 {[%emt 0:00:01]} Kd7 {[%emt 0:00:00]} 77. Ng1 {[%emt 0:00:01]} Kc7 {[%emt 0:00:01]} 78. Nh3 {[%emt 0:00:01]} Kd7 {[%emt 0:00:01]} 79. Ng1 {[%emt 0:00:00] Weighted Error Value: White=0.13 (very precise) /Black=0.14 (very precise)} 1/2-1/2

[Event "FTX Road to Miami KO 2022"]
[Site "Online"]
[Date "2022.07.16"]
[Round "3.2"]
[White "Wei, Yi"]
[Black "Aronian, Levon"]
[Result "0-1"]
[ECO "E24"]
[WhiteElo "2727"]
[BlackElo "2775"]
[Annotator "TA"]
[PlyCount "122"]
[EventDate "2022.07.09"]
[EventType "k.o."]
[EventCountry "NET"]
[SourceTitle "playchess.com"]
[Source "ChessBase"]
[SourceQuality "1"]
[TimeControl "900+10"]

{[%evp 10,122,-10,-17,-14,-23,-17,-14,0,0,0,0,-12,-14,0,0,-10,-79,-72,-104,-10,-10,-20,-14,0,-36,-35,-25,-29,-14,-8,-9,-6,-11,-14,-16,-20,-47,0,-41,-40,-37,-38,-39,-31,-34,-40,-42,-42,-28,-35,-41,-33,-48,-22,-35,-39,-37,-48,-48,-48,-48,-56,-63,-63,-63,-63,-86,0,0,0,0,0,0,0,0,0,0,0,0,0,0,0,0,0,0,0,0,0,0,0,0,0,0,0,0,0,0,0,0,0,0,0,0,0,0,0,0,0,0,0,0,0,-12845,-12845]} 1. d4 {[%emt 0:00:00]} Nf6 {[%emt 0:00:00]} 2. c4 {[%emt 0:00:02]} e6 {[%emt 0:00:01]} 3. Nc3 {[%emt 0:00:02]} Bb4 {[%emt 0:00:02]} 4. a3 {[%emt 0:00:01]} Bxc3+ {[%emt 0:00:06]} 5. bxc3 {[%emt 0:00:01]} b6 {[%emt 0:00:07]} 6. f3 {[%emt 0:00:07][%cal Bf2f3,Bf3f4][%mdl 32]} Nc6 {[%emt 0:00:03][%cal Bb8c6,Bc6a5,Ba5b3,Bb3c1][%mdl 32] E24: Nimzo-Indian: Sämisch: Unusual Black 5th moves and 5...c5 sidelines.} 7. e4 {[%emt 0:00:03]} Na5 $1 {[%emt 0:00:04][%mdl 4] now scores much better than the old 7...Ba6.} 8. Bd3 {[%emt 0:00:07]} d6 {[%emt 0:00:47] The position is equal.} 9. f4 {[%emt 0:00:09]} Bb7 {[%emt 0:00:47]} 10. Qe2 {[%emt 0:00:05]} Nb3 {[%emt 0:00:07] Pair of Knights!} 11. Rb1 {[%emt 0:00:02]} Nxc1 {[%emt 0:00:01]} 12. Rxc1 {[%emt 0:00:00]} e5 {[%emt 0:00:00] [#]} 13. Nf3 $146 {[%emt 0:00:14]} (13. fxe5 $11 {remains equal.} dxe5 14. Nf3) ({Predecessor:} 13. fxe5 dxe5 14. Nf3 Nd7 15. c5 O-O 16. O-O bxc5 17. dxe5 Qe7 18. Rb1 Rab8 19. Rb2 {0-1 (63) Umetsubo,C (2406)-Pichot,A (2579) Sao Paulo 2019}) 13... exf4 $17 {[%emt 0:00:36]} 14. O-O {[%emt 0:01:20]} O-O {[%emt 0:00:04]} (14... Ng4 $1 $17 {Threatening ...0-0.} 15. e5 O-O) 15. Nd2 $1 $11 {[%emt 0:01:05]} g6 {[%emt 0:02:21]} 16. Rxf4 {[%emt 0:00:19]} Nh5 {[%emt 0:00:02]} 17. Rf2 {[%emt 0:09:19]} Qg5 {[%emt 0:00:03]} 18. Rcf1 {[%emt 0:00:04][%cal Oc4c5]} Rae8 {[%emt 0:00:02][%cal Of7f5]} 19. Nf3 {[%emt 0:00:21]} Qg4 {[%emt 0:01:59] ...Nf4 is the strong threat.} 20. Nd2 {[%emt 0:01:36]} Qxe2 {[%emt 0:00:44]} 21. Rxe2 {[%emt 0:00:01]} Bc8 {[%emt 0:02:34]} 22. Ref2 {[%emt 0:00:15]} Re7 {[%emt 0:01:29]} 23. Nf3 {[%emt 0:00:23]} Nf6 {[%emt 0:01:53]} (23... Nf4 $15 24. Bc2 Bg4) 24. e5 {[%emt 0:00:42]} (24. Nd2 $5 {[%cal Rf2f6]} Nh5 25. Bc2 $11) 24... dxe5 {[%emt 0:00:52]} 25. Nxe5 {[%emt 0:00:06]} Ng4 {[%emt 0:00:01]} 26. Nxg4 {[%emt 0:00:14]} Bxg4 {[%emt 0:00:00]} 27. h3 {[%emt 0:00:18]} Bd7 {[%emt 0:00:12]} 28. Re2 {[%emt 0:00:24]} Rxe2 {[%emt 0:00:16]} 29. Bxe2 $15 {[%emt 0:00:01][%mdl 4096] Endgame KRB-KRB} Re8 {[%emt 0:00:02]} 30. Kf2 {[%emt 0:00:00]} Bc6 {[%emt 0:00:46][%cal Oc6g2]} 31. d5 {[%emt 0:00:32]} Bd7 {[%emt 0:00:06]} 32. Rb1 {[%emt 0:00:23][%cal Oc4c5]} Bf5 {[%emt 0:02:21]} 33. Rb2 {[%emt 0:00:02][%cal Oc4c5]} Be4 {[%emt 0:00:31]} 34. a4 {[%emt 0:00:27][%cal Oa4a5]} Kf8 {[%emt 0:00:12]} 35. Bf3 {[%emt 0:00:55]} Bxf3 $1 {[%emt 0:00:06]} 36. Kxf3 {[%emt 0:00:03][%cal Oa4a5] KR-KR} Re1 {[%emt 0:00:02]} 37. c5 {[%emt 0:00:45][%cal Oa4a5]} Rc1 {[%emt 0:00:02]} 38. Rb3 {[%emt 0:00:03][%cal Oa4a5]} bxc5 {[%emt 0:00:48]} (38... Ke7 $1 $17 39. Ke4 bxc5) 39. Rb7 $11 {[%emt 0:00:21][%csl LRa7,LRc7]} Rxc3+ {[%emt 0:00:01]} 40. Ke4 {[%emt 0:00:03]} Ke7 {[%emt 0:00:26] Strongly threatening ...f5+.} 41. Rxc7+ {[%emt 0:00:03]} Kd6 {[%emt 0:00:02]} 42. Rc6+ {[%emt 0:00:33]} Kd7 {[%emt 0:00:00]} 43. Ra6 {[%emt 0:00:14]} f5+ {[%emt 0:00:02]} 44. Kf4 {[%emt 0:00:10]} Rc2 {[%emt 0:00:37]} 45. g4 {[%emt 0:00:18]} Rc4+ {[%emt 0:00:18]} 46. Kf3 {[%emt 0:00:08]} Rc3+ {[%emt 0:00:13]} 47. Kf4 {[%emt 0:00:02]} Rc4+ {[%emt 0:00:23]} 48. Kf3 {[%emt 0:00:01]} Rc3+ {[%emt 0:00:24]} 49. Kf4 {[%emt 0:00:01]} Rxh3 {[%emt 0:00:06] White must now prevent ...fxg4.} 50. gxf5 {[%emt 0:00:07]} gxf5 {[%emt 0:00:05]} 51. Kxf5 {[%emt 0:00:11]} h5 {[%emt 0:00:26]} 52. Ke4 {[%emt 0:00:34]} Kc7 {[%emt 0:00:23]} 53. Rxa7+ {[%emt 0:00:08]} Kb6 {[%emt 0:00:01]} 54. Ra8 {[%emt 0:00:28]} c4 {[%emt 0:00:12]} 55. Rc8 {[%emt 0:00:10]} Kb7 {[%emt 0:00:04]} 56. Rc5 {[%emt 0:00:02]} (56. Rxc4 $2 Rh4+ 57. Ke3 Rxc4 58. a5 Ra4 59. Kf2 Rxa5 60. Kg3 Ra4 61. d6 h4+ 62. Kg2 Kc6 63. d7 Kxd7 64. Kf3 Ra3+ 65. Kg2 h3+ 66. Kg1 Ra2 67. Kh1 Ke6 68. Kg1 Ke5 69. Kh1 Ra1+ 70. Kh2 Kf4 71. Kxh3 Ra2 72. Kh4 Rh2#) 56... Rg3 {[%emt 0:00:17]} 57. d6 {[%emt 0:00:20] Threatens to win with d7.} (57. Rxc4 Rg4+ 58. Ke3 Rxc4 59. a5 Ra4 60. Kf3 h4 61. Kg2 Rxa5 62. Kh3 Ra4 63. Kg2 Ra3 64. d6 Kc6 65. d7 Kxd7 66. Kh2 h3 67. Kg1 Ra2 68. Kh1 Kd6 69. Kg1 Kd5 70. Kh1 Ke4 71. Kg1 Kf4 72. Kf1 h2 73. Ke1 h1=Q#) 57... h4 {[%emt 0:00:02]} 58. a5 {[%emt 0:00:12]} (58. Rxc4 Rg4+ 59. Kf3 Rxc4 60. d7 Kc7 61. d8=R Kxd8 62. a5 Ra4 63. Kg2 Rxa5 64. Kh3 Rg5 65. Kxh4 Rg2 66. Kh5 Ke7 67. Kh4 Rg6 68. Kh5 Kf6 69. Kh4 Kf5 70. Kh3 Kf4 71. Kh2 Kf3 72. Kh1 Kf2 73. Kh2 Rh6#) 58... h3 {[%emt 0:00:05]} 59. Rc7+ {[%emt 0:00:09]} (59. Rxc4 Rg4+ 60. Kd3 Rxc4 61. d7 Kc7 $1 62. d8=R Kxd8 63. Kxc4 h2 64. Kd3 h1=Q 65. Ke3 Qa1 66. a6 Qxa6 67. Kd2 Ke7 68. Ke3 Qa5 69. Kf2 Qd2+ 70. Kf3 Kf6 71. Ke4 Ke6 72. Kf3 Kf5 73. Kg3 Qe2 74. Kh3 Kf4 75. Kh4 Qh2#) 59... Ka6 {[%emt 0:00:06]} 60. Rh7 {[%emt 0:00:08]} ({Avoid the trap} 60. Rxc4 $2 h2 61. Kf4 {[#]} h1=Q $1 $19) 60... Rd3 {[%emt 0:00:11]} 61. Rh6 {[%emt 0:00:21][%mdl 8192]} (61. d7 $11) 61... Kxa5 {[%emt 0:00:05] Weighted Error Value: White=0.20 (precise) /Black=0.07 (flawless)} 0-1

[Event "FTX Road to Miami KO 2022"]
[Site "Online"]
[Date "2022.07.16"]
[Round "3.3"]
[White "Aronian, Levon"]
[Black "Wei, Yi"]
[Result "1/2-1/2"]
[ECO "A14"]
[WhiteElo "2775"]
[BlackElo "2727"]
[PlyCount "100"]
[EventDate "2022.07.09"]
[EventType "k.o."]
[EventCountry "NET"]
[TimeControl "900+10"]

1. c4 Nf6 2. g3 e6 3. Bg2 d5 4. Nf3 Be7 5. O-O O-O 6. b3 b6 7. Bb2 Bb7 8. e3 c5 9. Qe2 Nc6 10. Rd1 Rc8 11. d3 Rc7 12. Nc3 d4 13. exd4 cxd4 14. Nb5 Rd7 15. Ne5 Nxe5 16. Bxb7 Rxb7 17. Qxe5 Rd7 18. Nxd4 Ng4 19. Qe4 Nxf2 20. Kxf2 Bc5 21. Ke3 Re8 22. Kd2 Bxd4 23. Bxd4 Rxd4 24. Qe3 e5 25. Kc2 Qd6 26. Re1 e4 27. Qf4 Qg6 28. Rad1 Rxd3 29. Rxd3 exd3+ 30. Kc3 Rd8 31. Qd4 Qg5 32. h4 Qa5+ 33. Kb2 Qd2+ 34. Ka3 Qa5+ 35. Kb2 Qd2+ 36. Ka3 Rc8 37. Re3 Qa5+ 38. Kb2 Qd2+ 39. Ka3 Qc1+ 40. Ka4 Qc2 41. Ka3 Qc1+ 42. Ka4 h6 43. Qd7 Rxc4+ 44. bxc4 Qxc4+ 45. Ka3 Qc3+ 46. Ka4 Qc4+ 47. Ka3 Qc5+ 48. Kb3 Qc2+ 49. Ka3 Qc3+ 50. Ka4 Qc4+ 1/2-1/2